bitfinex/quotes_SOLUSD_20251223
["timestamp","ask_amount","ask_price","bid_price","bid_amount"]
[1766480465997,0.69,124.35,124.33,2.59341705]
[1766480466191,0.69,124.35,124.34,1.91341705]
[1766480466397,8.93130396,124.36,124.34,1.91341705]
[1766480466798,8.93130396,124.36,124.33,0.68]
[1766480467003,0.89,124.36,124.35,1.91341705]
[1766480467388,0.89,124.36,124.34,1.91341705]
[1766480467389,8.93117079,124.36,124.34,1.91341705]
[1766480468700,0.89,124.36,124.34,1.91341705]
[1766480469336,0.89,124.36,124.35,1.91341705]
[1766480469792,0.89,124.36,124.34,1.91341705]
[1766480469996,0.89,124.36,124.34,2.98324302]
[1766480470513,0.89,124.36,124.35,2.98324302]
[1766480471315,8.93117079,124.36,124.35,2.98324302]
[1766480473517,8.93117079,124.36,124.34,2.98324302]
[1766480476014,8.93117079,124.36,124.33,0.68]
[1766480476314,8.93117079,124.36,124.34,2.98324302]
[1766480476834,0.89,124.36,124.35,2.98324302]
[1766480478528,0.89,124.36,124.34,3.66324302]
[1766480480710,0.89,124.36,124.35,2.98324302]
[1766480481435,0.89,124.36,124.34,3.66324302]
[1766480482033,0.2,124.36,124.34,3.66324302]
[1766480482206,0.2,124.36,124.34,2.98324302]
[1766480482207,0.89,124.36,124.34,2.98324302]
[1766480482711,0.89,124.36,124.34,3.66324302]
[1766480484035,0.89,124.36,124.34,0.68]
[1766480484238,0.89,124.36,124.34,3.66324302]
[1766480485112,0.89,124.36,124.34,0.68]
[1766480485423,18.67856044,124.37,124.35,2.98324302]
[1766480485424,19.36856044,124.37,124.35,2.98324302]
[1766480486733,0.2,124.37,124.36,2.98324302]
[1766480486920,0.2,124.37,124.36,3.66324302]
[1766480487119,0.2,124.38,124.37,0.68]
[1766480487324,0.89,124.39,124.37,0.68]
[1766480487537,0.89,124.39,124.38,2.98324302]
[1766480488844,0.2,124.39,124.37,3.66324302]
[1766480489020,0.2,124.39,124.38,2.98324302]
[1766480489941,0.2,124.4,124.39,0.68]
[1766480490613,0.2,124.41,124.39,0.68]
[1766480490818,0.2,124.41,124.39,3.66324302]
[1766480492940,0.9,124.41,124.39,3.66324302]
[1766480494041,0.2,124.41,124.39,3.66324302]
[1766480494339,0.2,124.42,124.4,3.68324302]
[1766480495331,0.2,124.42,124.4,0.7]
[1766480495531,0.2,124.42,124.4,3.68324302]
[1766480496628,0.87,124.42,124.39,0.67]
[1766480496831,0.87,124.42,124.4,2.98324302]
[1766480497340,0.87,124.42,124.4,3.65324302]
[1766480497929,0.2,124.42,124.4,3.65324302]
[1766480498328,0.2,124.42,124.4,0.67]
[1766480498636,0.2,124.42,124.4,3.65324302]
[1766480500036,0.2,124.42,124.4,0.67]
[1766480500220,0.2,124.42,124.4,3.65324302]
[1766480503646,0.2,124.42,124.41,2.98324302]
[1766480504451,8.70634087,124.44,124.41,3.65324302]
[1766480504631,0.67,124.43,124.42,2.98324302]
[1766480505443,0.67,124.43,124.41,2.98324302]
[1766480506427,0.67,124.43,124.42,2.98324302]
[1766480506634,0.67,124.44,124.42,3.65324302]
[1766480506860,0.67,124.44,124.42,2.98324302]
[1766480508336,0.67,124.44,124.42,3.65324302]
[1766480509151,0.67,124.43,124.41,2.98324302]
[1766480509343,0.67,124.43,124.41,3.65324302]
[1766480510046,0.67,124.43,124.42,2.98324302]
[1766480510244,0.67,124.43,124.38,8.7098156]
[1766480510550,8.03606522,124.44,124.38,0.67]
[1766480510551,8.70729303,124.42,124.38,0.67]
[1766480510756,8.70729303,124.42,124.39,2.98324302]
[1766480510932,8.70729303,124.42,124.38,0.67]
[1766480510933,8.70729303,124.42,124.4,2.98324302]
[1766480511853,0.67,124.38,124.33,0.67]
[1766480512053,0.67,124.37,124.33,2.98324302]
[1766480512260,0.67,124.37,124.34,3.65324302]
[1766480512459,2.98324302,124.37,124.32,2.98324302]
[1766480512759,2.98324302,124.37,124.33,2.98324302]
[1766480512760,0.67,124.37,124.33,2.98324302]
[1766480513345,0.67,124.37,124.33,3.65324302]
[1766480513751,8.04117079,124.36,124.33,0.67]
[1766480514065,8.04117079,124.36,124.33,3.65324302]
[1766480514367,8.04117079,124.36,124.33,0.67]
[1766480514554,8.04117079,124.36,124.33,3.65324302]
[1766480514763,8.71117079,124.36,124.33,3.65324302]
[1766480515347,8.04080756,124.37,124.34,3.65324302]
[1766480515862,8.71080756,124.37,124.34,3.65324302]
[1766480517041,8.71080756,124.37,124.34,0.67]
[1766480517253,8.71080756,124.37,124.34,3.65324302]
[1766480521466,8.71080756,124.37,124.34,0.67]
[1766480522568,8.71080756,124.37,124.34,3.65324302]
[1766480526951,8.04080756,124.37,124.34,2.98324302]
[1766480527146,8.04080756,124.37,124.35,0.72]
[1766480527347,28.14211816,124.37,124.3,8.04471363]
[1766480527547,10.43767296,124.34,124.29,8.04556844]
[1766480527772,10.43767296,124.34,124.31,2.98324302]
[1766480528148,10.43767296,124.34,124.29,8.04556844]
[1766480528353,10.43767296,124.34,124.31,2.98324302]
[1766480528658,10.43767296,124.34,124.27,20.31642309]
[1766480528659,11.15767296,124.34,124.3,2.98324302]
[1766480529474,8.04311107,124.33,124.3,0.72]
[1766480529670,10.43767296,124.31,124.27,0.2]
[1766480529875,10.43767296,124.31,124.28,3.70324302]
[1766480530171,10.43767296,124.31,124.29,0.72]
[1766480532074,18.48246034,124.31,124.29,0.72]
[1766480535362,18.48246034,124.31,124.29,2.63138793]
[1766480536375,8.04478738,124.31,124.3,0.72]
[1766480536563,19.20013717,124.34,124.31,0.72]
[1766480536766,0.72,124.33,124.31,0.72]
[1766480536961,0.72,124.33,124.3,2.63138793]
[1766480537166,0.72,124.33,124.3,0.72]
[1766480538282,8.04206864,124.35,124.33,0.72]
[1766480538576,20.10319343,124.36,124.34,0.72]
[1766480538761,28.86436422,124.36,124.33,1.91138793]
[1766480539162,0.72,124.35,124.33,1.91138793]
[1766480539867,0.72,124.35,124.3,8.04487562]
[1766480540179,0.72,124.35,124.33,1.91138793]
[1766480540481,8.76200365,124.35,124.33,1.91138793]
[1766480541084,8.76200365,124.35,124.31,0.72]
[1766480541260,8.76200365,124.35,124.33,1.91138793]
[1766480541877,8.76200365,124.35,124.32,1.91138793]
[1766480543177,8.76200365,124.35,124.31,0.72]
[1766480543369,8.76200365,124.35,124.33,1.91138793]
[1766480546891,8.04200365,124.35,124.28,20.11528166]
[1766480547084,0.72,124.34,124.32,1.91138793]
[1766480548369,7.23879996,124.33,124.32,1.91138793]
[1766480548876,7.23879996,124.33,124.3,0.72]
[1766480549189,7.23879996,124.33,124.32,1.91138793]
[1766480549386,18.09408926,124.35,124.32,1.91138793]
[1766480549583,0.72,124.34,124.31,1.91138793]
[1766480550488,7.95879996,124.33,124.31,1.91138793]
[1766480551571,18.09408926,124.35,124.28,0.72]
[1766480551572,1.91138793,124.34,124.28,0.72]
[1766480551765,1.91138793,124.34,124.29,1.91138793]
[1766480551766,0.72,124.33,124.29,1.91138793]
[1766480552385,0.72,124.33,124.3,1.91138793]
[1766480553180,0.72,124.33,124.29,2.59138793]
[1766480553893,7.94938223,124.32,124.29,2.59138793]
[1766480554470,7.94938223,124.32,124.3,1.91138793]
[1766480555192,7.94938223,124.32,124.29,2.59138793]
[1766480558491,7.94938223,124.32,124.3,1.91138793]
[1766480558676,17.67667456,124.33,124.31,2.62138793]
[1766480558878,7.91842535,124.34,124.32,1.91138793]
[1766480559480,7.91842535,124.34,124.31,2.62138793]
[1766480560596,0.68,124.33,124.29,0.71]
[1766480560903,0.68,124.33,124.29,2.62138793]
[1766480561401,0.68,124.33,124.3,2.62138793]
[1766480562318,18.35535123,124.35,124.32,2.62138793]
[1766480562506,0.68,124.34,124.32,1.91138793]
[1766480562806,18.35535123,124.35,124.32,2.62138793]
[1766480564505,6.43302794,124.36,124.34,1.91138793]
[1766480564679,7.11302794,124.36,124.34,1.91138793]
[1766480564994,0.68,124.35,124.33,1.91138793]
[1766480567605,6.43302794,124.36,124.34,2.62138793]
[1766480567788,6.43302794,124.36,124.35,1.91138793]
[1766480568208,6.43302794,124.36,124.34,2.62138793]
[1766480569291,0.68,124.37,124.35,1.91138793]
[1766480572408,0.68,124.37,124.34,0.71]
[1766480572616,17.55010032,124.37,124.34,0.71]
[1766480572789,17.55010032,124.37,124.35,1.91138793]
[1766480576411,16.87010032,124.37,124.35,1.91138793]
[1766480576617,16.87010032,124.37,124.35,0.71]
[1766480576817,20.09954801,124.39,124.3,20.11207474]
[1766480576818,20.09954801,124.39,124.36,1.91138793]
[1766480577400,20.09954801,124.39,124.37,1.91138793]
[1766480577596,20.09954801,124.39,124.36,1.91138793]
[1766480577795,20.77954801,124.39,124.36,1.91138793]
[1766480578303,8.03987779,124.38,124.36,1.91138793]
[1766480582603,8.03987779,124.38,124.35,1.91138793]
[1766480583007,16.43667422,124.44,124.32,12.34906089]
[1766480583211,0.68,124.4,124.36,1.91138793]
[1766480583418,2.59138793,124.4,124.35,1.91138793]
[1766480586958,10.43767296,124.42,124.35,1.91138793]
[1766480587236,0.71,124.43,124.35,28.14632413]
[1766480587414,0.71,124.42,124.37,1.91138793]
[1766480587810,0.71,124.42,124.35,28.14632413]
[1766480588013,0.71,124.42,124.37,1.91138793]
[1766480588207,1.91138793,124.41,124.36,12.34906089]
[1766480588446,0.71,124.39,124.35,1.91138793]
[1766480589456,0.71,124.39,124.36,1.91138793]
[1766480591931,0.71,124.39,124.36,2.98220584]
[1766480592431,0.71,124.39,124.38,2.98220584]
[1766480592832,8.0385852,124.4,124.38,2.98220584]
[1766480593032,0.71,124.39,124.38,2.98220584]
[1766480593268,0.71,124.39,124.34,8.04208457]
[1766480593447,0.71,124.39,124.37,2.98220584]
[1766480595965,0.71,124.38,124.37,2.98220584]
[1766480596142,0.71,124.38,124.35,2.98220584]
[1766480596970,0.71,124.38,124.34,2.98220584]
[1766480597442,8.04052424,124.37,124.31,8.04412267]
[1766480597765,0.71,124.36,124.34,2.98220584]
[1766480598645,0.71,124.36,124.3,8.04479023]
[1766480598646,0.71,124.36,124.33,2.98220584]
[1766480599542,8.04149996,124.36,124.33,2.98220584]
[1766480599864,8.75149996,124.36,124.33,2.98220584]
[1766480601071,8.75149996,124.36,124.34,2.98220584]
[1766480601568,0.71,124.37,124.3,8.04479023]
[1766480601775,0.71,124.37,124.34,2.98220584]
[1766480604751,8.04117079,124.36,124.33,2.98220584]
[1766480604952,8.75117079,124.36,124.33,2.98220584]
[1766480605248,0.71,124.35,124.33,2.98220584]
[1766480605451,0.71,124.35,124.31,2.98220584]
[1766480605779,0.71,124.34,124.3,2.98220584]
[1766480606360,0.71,124.34,124.31,2.98220584]
[1766480607475,8.75311107,124.33,124.31,2.98220584]
[1766480608667,0.71,124.32,124.3,2.98220584]
[1766480609351,8.75385546,124.32,124.3,2.98220584]
[1766480611468,8.75385546,124.32,124.27,8.24693295]
[1766480611670,8.75385546,124.32,124.3,2.98220584]
[1766480614081,8.75385546,124.32,124.29,2.98220584]
[1766480616874,0.71,124.32,124.3,2.98220584]
[1766480617080,8.04340433,124.33,124.3,2.98220584]
[1766480617255,0.68,124.33,124.3,2.98220584]
[1766480618562,8.72315015,124.33,124.3,2.98220584]
[1766480618864,0.68,124.32,124.3,2.98220584]
[1766480619178,0.68,124.32,124.31,2.98220584]
[1766480621979,0.68,124.32,124.28,8.04627491]
[1766480622159,0.68,124.32,124.3,2.98220584]
[1766480623677,8.72377907,124.32,124.29,2.98220584]
[1766480625768,0.68,124.31,124.29,2.98220584]
[1766480632679,0.68,124.31,124.27,0.2]
[1766480632874,0.68,124.31,124.29,2.98220584]
[1766480633987,8.72377907,124.32,124.3,2.98220584]
[1766480634792,0.68,124.32,124.3,2.98220584]
[1766480635095,8.72380292,124.32,124.3,2.98220584]
[1766480636683,0.68,124.33,124.3,2.98220584]
[1766480639397,0.68,124.31,124.28,2.98220584]
[1766480639773,0.68,124.31,124.29,2.98220584]
[1766480640591,0.68,124.31,124.27,3.18220584]
[1766480641382,8.72505229,124.3,124.27,3.85220584]
[1766480642094,0.68,124.29,124.27,3.85220584]
[1766480642392,0.68,124.29,124.27,0.2]
[1766480642895,0.68,124.29,124.27,3.18220584]
[1766480643094,0.68,124.29,124.27,3.85220584]
[1766480643294,20.11160874,124.31,124.29,0.67]
[1766480643295,8.04440511,124.31,124.29,0.67]
[1766480643498,8.72440511,124.31,124.29,3.65220584]
[1766480644296,8.72440511,124.31,124.29,2.98220584]
[1766480646102,8.72440511,124.31,124.28,3.65220584]
[1766480647296,8.04375804,124.32,124.29,2.98220584]
[1766480647502,8.75375804,124.32,124.29,3.66220584]
[1766480647803,8.04375804,124.32,124.31,0.68]
[1766480648677,8.04375804,124.32,124.3,3.66220584]
[1766480648881,8.04375804,124.32,124.3,0.68]
[1766480649082,8.75375804,124.32,124.3,0.68]
[1766480650706,8.04375804,124.32,124.3,0.68]
[1766480651600,8.75375804,124.32,124.3,0.68]
[1766480652079,8.75375804,124.32,124.29,3.66220584]
[1766480653606,8.75375804,124.32,124.3,2.98220584]
[1766480654105,8.75375804,124.32,124.3,1.91075751]
[1766480657296,8.75375804,124.32,124.29,0.68]
[1766480657505,8.75375804,124.32,124.3,1.91075751]
[1766480660015,8.04375804,124.32,124.3,2.59075751]
[1766480660913,8.75375804,124.32,124.3,2.59075751]
[1766480662428,8.75375804,124.32,124.3,1.91075751]
[1766480662595,8.75375804,124.32,124.3,2.59075751]
[1766480662919,8.75375804,124.32,124.3,0.68]
[1766480663105,8.75375804,124.32,124.3,2.59075751]
[1766480665621,8.75375804,124.32,124.3,0.68]
[1766480668021,8.75375804,124.32,124.3,2.59075751]
[1766480668621,0.71,124.32,124.3,2.59075751]
[1766480668919,8.75386098,124.32,124.3,2.59075751]
[1766480673526,8.75386098,124.32,124.3,0.68]
[1766480675835,8.04386098,124.32,124.29,1.91075751]
[1766480676027,0.66,124.31,124.29,2.58075751]
[1766480676631,0.66,124.31,124.28,0.67]
[1766480677244,0.66,124.31,124.28,2.58075751]
[1766480677926,8.70479351,124.31,124.28,2.58075751]
[1766480678526,8.04816973,124.3,124.28,2.58075751]
[1766480679236,11.09767296,124.33,124.3,0.67]
[1766480679407,11.09767296,124.33,124.31,2.58075751]
[1766480679910,19.34462245,124.33,124.31,2.58075751]
[1766480680327,27.38797846,124.33,124.31,2.58075751]
[1766480680524,16.9503055,124.33,124.32,1.91075751]
[1766480680735,8.70335601,124.33,124.32,1.91075751]
[1766480681023,16.28961309,124.34,124.32,2.58075751]
[1766480681225,8.70052424,124.37,124.34,0.67]
[1766480681526,8.90694949,124.36,124.34,1.91075751]
[1766480681728,0.66,124.36,124.34,1.91075751]
[1766480682926,0.66,124.36,124.33,0.67]
[1766480683249,8.70166303,124.36,124.33,0.67]
[1766480683741,10.61242054,124.36,124.33,0.67]
[1766480690630,18.85937003,124.36,124.33,0.67]
[1766480691713,16.94861252,124.36,124.33,0.67]
[1766480691928,18.85937003,124.36,124.33,0.67]
[1766480692540,16.94861252,124.36,124.33,0.67]
[1766480693135,8.24694949,124.36,124.33,1.91075751]
[1766480693345,8.04022635,124.38,124.35,0.67]
[1766480693932,8.70022635,124.38,124.35,11.10767296]
[1766480695038,8.70022635,124.38,124.35,0.67]
[1766480695536,19.13789931,124.38,124.35,0.67]
[1766480695929,8.70022635,124.38,124.35,0.67]
[1766480697441,10.61098386,124.38,124.35,0.67]
[1766480699142,8.70022635,124.38,124.35,0.67]
[1766480699741,10.61098386,124.38,124.35,0.67]
[1766480700043,21.04865682,124.38,124.35,0.67]
[1766480700245,19.13789931,124.38,124.35,0.67]
[1766480703149,0.66,124.35,124.32,10.43767296]
[1766480703342,2.57075751,124.34,124.32,10.43767296]
[1766480703650,2.57075751,124.34,124.31,0.67]
[1766480703651,0.66,124.34,124.31,0.67]
[1766480703833,10.43767296,124.33,124.31,0.67]
[1766480706456,10.43767296,124.33,124.32,0.69]
[1766480708556,8.75189542,124.35,124.32,2.60075751]
[1766480708930,8.04538837,124.33,124.32,2.60075751]
[1766480709154,8.75189542,124.35,124.32,2.60075751]
[1766480709357,10.43767296,124.34,124.32,2.60075751]
[1766480710648,8.75189542,124.35,124.33,1.91075751]
[1766480711036,19.18956838,124.35,124.33,1.91075751]
[1766480713459,19.18956838,124.35,124.32,2.60075751]
[1766480714761,19.18956838,124.35,124.32,0.69]
[1766480716570,19.18956838,124.35,124.32,3.67457425]
[1766480717868,0.71,124.34,124.32,0.69]
[1766480718466,19.18956838,124.34,124.32,0.69]
[1766480718960,0.71,124.34,124.32,0.69]
[1766480719145,19.1925371,124.34,124.32,0.69]
[1766480719345,0.71,124.34,124.32,0.69]
[1766480720668,0.71,124.34,124.32,3.67457425]
[1766480721548,27.23443252,124.35,124.33,2.98457425]
[1766480721743,19.1925371,124.35,124.33,2.98457425]
[1766480721948,19.1925371,124.35,124.33,3.67457425]
[1766480722143,18.4825371,124.35,124.33,3.67457425]
[1766480722355,18.4825371,124.35,124.34,0.69]
[1766480722652,8.75148782,124.36,124.34,0.69]
[1766480722867,19.18850808,124.37,124.34,3.67457425]
[1766480723060,24.15556181,124.36,124.34,3.67457425]
[1766480723462,24.86556181,124.36,124.34,3.67457425]
[1766480723656,24.86556181,124.36,124.34,0.69]
[1766480724646,8.74995163,124.38,124.33,0.69]
[1766480724970,32.90162413,124.38,124.35,3.67457425]
[1766480726245,24.8616725,124.38,124.35,3.67457425]
[1766480726452,24.8616725,124.38,124.33,32.19466758]
[1766480726453,0.71,124.38,124.36,3.67457425]
[1766480727182,8.74883523,124.4,124.37,3.67457425]
[1766480727485,32.89661967,124.4,124.37,3.67457425]
[1766480729164,0.71,124.39,124.35,3.67457425]
[1766480729977,0.71,124.39,124.36,2.98457425]
[1766480730274,0.71,124.37,124.33,24.1516725]
[1766480730469,0.71,124.37,124.33,2.98457425]
[1766480730770,0.71,124.37,124.33,3.67457425]
[1766480730956,20.82501244,124.36,124.33,3.67457425]
[1766480731357,28.86656757,124.36,124.33,3.67457425]
[1766480733273,28.86656757,124.36,124.34,2.98457425]
[1766480733477,8.75155513,124.36,124.34,2.98457425]
[1766480734177,8.0447743,124.35,124.34,2.98457425]
[1766480737174,31.19736744,124.38,124.35,3.64457425]
[1766480737375,24.15556181,124.36,124.35,3.64457425]
[1766480737577,0.66,124.37,124.35,2.98457425]
[1766480738583,8.70052424,124.37,124.35,2.98457425]
[1766480739689,8.70052424,124.37,124.34,0.66]
[1766480739867,8.70052424,124.37,124.35,2.98457425]
[1766480740187,8.70052424,124.37,124.34,3.64457425]
[1766480740481,8.04052424,124.37,124.34,3.64457425]
[1766480740712,0.66,124.36,124.34,3.64457425]
[1766480742010,8.70052424,124.37,124.34,3.64457425]
[1766480742294,8.70052424,124.37,124.34,0.66]
[1766480742462,8.70052424,124.37,124.34,3.64457425]
[1766480744483,8.70052424,124.37,124.35,2.98457425]
[1766480753225,8.70052424,124.37,124.35,3.64457425]
[1766480754522,8.04052424,124.37,124.36,0.66]
[1766480754720,8.69952786,124.39,124.36,3.64457425]
[1766480755033,8.69952786,124.39,124.37,2.98457425]
[1766480755323,0.66,124.39,124.37,2.98457425]
[1766480761015,0.66,124.39,124.36,0.66]
[1766480761226,0.66,124.39,124.37,0.66]
[1766480761428,8.69944957,124.39,124.37,3.64457425]
[1766480761594,0.66,124.38,124.36,2.98457425]
[1766480761800,0.66,124.38,124.36,3.64457425]
[1766480765326,0.66,124.38,124.36,2.98457425]
[1766480765927,0.66,124.38,124.35,3.64457425]
[1766480766695,8.70008183,124.38,124.35,3.64457425]
[1766480766900,0.7,124.37,124.35,3.64457425]
[1766480768342,28.1357397,124.4,124.35,3.64457425]
[1766480768516,0.7,124.39,124.35,3.64457425]
[1766480770427,8.03987779,124.38,124.35,3.64457425]
[1766480770729,8.73987779,124.38,124.35,3.64457425]
[1766480774220,8.73987779,124.38,124.36,2.98457425]
[1766480777951,8.73987779,124.38,124.36,1.90869925]
[1766480780532,8.73987779,124.38,124.35,2.56869925]
[1766480781741,0.7,124.38,124.35,2.56869925]
[1766480784332,0.7,124.38,124.36,1.90869925]
[1766480792272,0.7,124.38,124.35,2.56869925]
[1766480793260,0.7,124.38,124.31,10.43767296]
[1766480793261,0.7,124.37,124.31,0.67]
[1766480793465,0.7,124.37,124.33,2.57869925]
[1766480794670,0.7,124.37,124.34,1.90869925]
[1766480795155,8.04089564,124.37,124.34,1.90869925]
[1766480795356,0.7,124.36,124.34,1.90869925]
[1766480798571,0.7,124.36,124.31,8.04401315]
[1766480798872,0.7,124.36,124.21,15.1]
[1766480798873,0.68,124.32,124.28,2.59869925]
[1766480799064,0.68,124.32,124.29,1.90869925]
[1766480799269,0.68,124.32,124.28,0.69]
[1766480799451,11.11767296,124.32,124.3,1.90869925]
[1766480800368,11.11767296,124.32,124.29,0.69]
[1766480800762,11.11767296,124.32,124.3,1.90869925]
[1766480800959,11.11767296,124.32,124.3,2.59869925]
[1766480801162,11.11767296,124.32,124.3,1.90869925]
[1766480803556,11.11767296,124.32,124.29,0.69]
[1766480803757,11.11767296,124.32,124.3,1.90869925]
[1766480804574,19.16171147,124.32,124.3,1.90869925]
[1766480804872,0.68,124.31,124.27,2.79869925]
[1766480805659,8.72505229,124.3,124.27,2.79869925]
[1766480807278,8.72505229,124.3,124.28,1.90869925]
[1766480808082,0.68,124.3,124.28,2.59869925]
[1766480808980,8.7246442,124.31,124.29,1.90869925]
[1766480810578,8.7246442,124.31,124.28,2.59869925]
[1766480811658,8.0446442,124.31,124.28,2.59869925]
[1766480811864,0.68,124.3,124.28,2.59869925]
[1766480812175,0.68,124.3,124.29,1.90869925]
[1766480812473,0.68,124.3,124.28,2.59869925]
[1766480813177,8.0446442,124.31,124.29,1.90869925]
[1766480815183,8.7246442,124.31,124.29,1.90869925]
[1766480815676,8.7246442,124.31,124.29,2.59869925]
[1766480816375,8.0446442,124.31,124.3,0.69]
[1766480818081,8.0446442,124.31,124.27,0.2]
[1766480818265,8.0446442,124.31,124.29,0.69]
[1766480820478,8.7246442,124.31,124.29,0.69]
[1766480821587,0.68,124.31,124.29,0.69]
[1766480821986,19.16173578,124.32,124.29,0.69]
[1766480829872,10.43767296,124.32,124.29,1.90869925]
[1766480830078,8.0433834,124.33,124.29,1.90869925]
[1766480830079,18.48105636,124.33,124.3,0.71]
[1766480830483,19.20105636,124.33,124.3,0.71]
[1766480833602,21.10975561,124.33,124.3,0.71]
[1766480837091,19.20105636,124.33,124.3,0.71]
[1766480840003,19.20105636,124.33,124.3,3.69574701]
[1766480844685,19.20105636,124.33,124.3,0.71]
[1766480844889,19.20105636,124.33,124.3,3.69574701]
[1766480846711,18.48105636,124.33,124.31,0.71]
[1766480846908,18.48105636,124.33,124.3,2.98574701]
[1766480847409,19.20105636,124.33,124.3,2.98574701]
[1766480849010,19.20105636,124.33,124.3,3.69574701]
[1766480849213,19.20105636,124.33,124.31,0.71]
[1766480849426,19.20105636,124.33,124.3,2.98574701]
[1766480851414,19.20105636,124.33,124.3,3.68574701]
[1766480853712,19.20105636,124.33,124.31,2.98574701]
[1766480853713,10.43767296,124.33,124.31,2.98574701]
[1766480854015,0.68,124.37,124.33,0.66]
[1766480854194,8.72028353,124.38,124.36,2.98574701]
[1766480854392,19.15795649,124.38,124.35,0.66]
[1766480854709,8.72028353,124.38,124.36,2.98574701]
[1766480855185,10.43767296,124.37,124.36,2.98574701]
[1766480855385,8.72028353,124.38,124.36,2.98574701]
[1766480856393,0.68,124.38,124.36,3.68574701]
[1766480856916,8.69950603,124.39,124.37,2.98574701]
[1766480857212,8.69950603,124.39,124.36,3.68574701]
[1766480857591,32.87950603,124.39,124.34,8.04241693]
[1766480857795,32.87950603,124.39,124.36,2.98574701]
[1766480857796,8.69950603,124.39,124.36,2.98574701]
[1766480862014,18.47634301,124.4,124.37,2.98574701]
[1766480862590,10.43767296,124.4,124.38,2.98574701]
[1766480862797,8.69801951,124.41,124.38,2.98574701]
[1766480867504,8.69801951,124.41,124.39,2.98574701]
[1766480874536,8.69801951,124.41,124.35,8.0415398]
[1766480874713,8.69801951,124.41,124.39,2.98574701]
[1766480874909,8.69801951,124.41,124.38,2.98574701]
[1766480875121,0.66,124.4,124.36,2.98574701]
[1766480876849,0.66,124.39,124.34,8.04188029]
[1766480877030,0.66,124.39,124.36,2.98574701]
[1766480879136,0.66,124.39,124.37,2.98574701]
[1766480880341,0.66,124.39,124.35,8.04180873]
[1766480880546,0.66,124.39,124.37,2.98574701]
[1766480880728,0.66,124.39,124.38,2.98574701]
[1766480881037,8.69905761,124.4,124.38,2.98574701]
[1766480884039,8.69905761,124.4,124.35,8.04180873]
[1766480884219,8.69905761,124.4,124.38,2.98574701]
[1766480889121,8.69905761,124.4,124.37,2.98574701]
[1766480890558,0.66,124.4,124.37,2.98574701]
[1766480892063,8.69859885,124.4,124.37,2.98574701]
[1766480893162,8.69859885,124.4,124.34,8.04246421]
[1766480893356,0.66,124.39,124.36,2.98574701]
[1766480895074,0.66,124.39,124.37,2.98574701]
[1766480899970,0.66,124.39,124.37,1.90850622]
[1766480902466,0.66,124.39,124.36,1.90850622]
[1766480908869,0.66,124.39,124.35,8.04174351]
[1766480909168,0.66,124.39,124.36,1.90850622]
[1766480912477,0.66,124.39,124.37,1.90850622]
[1766480917087,0.67,124.41,124.37,1.90850622]
[1766480917293,0.67,124.41,124.38,1.90850622]
[1766480917679,0.67,124.41,124.36,8.04068981]
[1766480917974,0.67,124.41,124.38,1.90850622]
[1766480918365,0.67,124.41,124.37,1.90850622]
[1766480918785,8.70806815,124.41,124.37,1.90850622]
[1766480918963,0.67,124.4,124.37,1.90850622]
[1766480923302,8.70729303,124.42,124.39,1.90850622]
[1766480923586,0.67,124.41,124.39,1.90850622]
[1766480923795,0.67,124.41,124.38,1.90850622]
[1766480928690,0.67,124.41,124.39,1.90850622]
[1766480929775,0.67,124.41,124.36,8.04090165]
[1766480929968,8.70800037,124.41,124.39,1.90850622]
[1766480937396,8.70800037,124.41,124.38,1.90850622]
[1766480938593,8.03800037,124.41,124.39,1.90850622]
[1766480939383,8.70800037,124.41,124.39,1.90850622]
[1766480940396,0.67,124.41,124.34,8.04246421]
[1766480940697,0.67,124.41,124.38,1.90850622]
[1766480941580,0.67,124.4,124.34,8.04246421]
[1766480941797,0.67,124.4,124.33,18.48048202]
[1766480941985,0.67,124.4,124.36,1.90850622]
[1766480944201,8.70923144,124.39,124.37,1.90850622]
[1766480944581,8.70923144,124.39,124.33,18.48048202]
[1766480944898,8.70923144,124.39,124.37,1.90850622]
[1766480945903,0.67,124.39,124.37,1.90850622]
[1766480949983,0.67,124.39,124.35,8.0417158]